[Event "7th Fischer Memorial GM 2019"]
[Site "Anogia"]
[Date "2019.09.11"]
[Round "1.1"]
[White "Kaasen, Tor Fredrik"]
[Black "Baenziger, Fabian"]
[Result "1-0"]
[ECO "B72"]
[WhiteElo "2405"]
[BlackElo "2366"]
[Annotator "NA"]
[PlyCount "55"]
[EventDate "2019.09.11"]
[EventType "tourn"]
[EventCountry "GRE"]
[SourceTitle "playchess.com"]
[Source "ChessBase"]
[SourceQuality "1"]
[TimeControl "40/5400+30:1800+30"]

1. e4 {[%emt 0:00:00]} c5 {[%emt 0:00:00]} 2. Nf3 {[%emt 0:00:00]} d6 {[%emt 0:00:25]} 3. d4 {[%emt 0:00:10]} cxd4 {[%emt 0:00:08]} 4. Nxd4 {[%emt 0:00:07]} Nf6 {[%emt 0:00:17]} 5. Nc3 {[%emt 0:00:06]} a6 {[%emt 0:00:32]} 6. Bd3 {[%emt 0:00:14]} g6 {[%emt 0:01:45]} 7. f3 {[%emt 0:00:42]} Bg7 {[%emt 0:01:29]} 8. Be3 {[%emt 0:00:14]} Nbd7 {[%emt 0:05:57]} 9. Qd2 {[%emt 0:05:28]} Qc7 {[%emt 0:03:46]} 10. g4 {[%emt 0:04:51]} Nb6 {[%emt 0:14:02]} 11. O-O-O {[%emt 0:04:21]} Be6 {[%emt 0:10:29]} 12. h4 {[%emt 0:06:23]} Nc4 {[%emt 0:10:00]} 13. Nxe6 {[%emt 0:04:00]} fxe6 {[%emt 0:00:17]} 14. Bxc4 {[%emt 0:01:02]} Qxc4 {[%emt 0:00:06]} 15. Bd4 {[%emt 0:01:11]} Kf7 {[%emt 0:13:25]} 16. h5 {[%emt 0:02:40]} Rhc8 {[%emt 0:00:21]} 17. Kb1 {[%emt 0:10:46]} b5 {[%emt 0:04:37]} 18. e5 {[%emt 0:14:50]} dxe5 {[%emt 0:03:08]} 19. Bxe5 {[%emt 0:00:29]} Rd8 {[%emt 0:09:10]} 20. hxg6+ {[%emt 0:14:06]} hxg6 {[%emt 0:00:10]} 21. Qxd8 {[%emt 0:01:04]} Rxd8 {[%emt 0:00:08]} 22. Rxd8 {[%emt 0:00:04]} Nd5 {[%emt 0:11:29]} 23. Bxg7 {[%emt 0:03:10]} Kxg7 {[%emt 0:00:06]} 24. Nxd5 {[%emt 0:00:30]} exd5 {[%emt 0:00:30]} 25. Re1 {[%emt 0:01:19]} e5 {[%emt 0:02:57]} 26. Re8 {[%emt 0:01:58]} e4 {[%emt 0:03:04]} 27. fxe4 {[%emt 0:00:18]} d4 {[%emt 0:00:16]} 28. Rd8 {[%emt 0:01:20]} 1-0

[Event "7th Fischer Memorial GM 2019"]
[Site "Anogia"]
[Date "2019.09.11"]
[Round "1.3"]
[White "Akash Pc, Iyer"]
[Black "Stoyanov, Tsvetan"]
[Result "1/2-1/2"]
[ECO "D70"]
[WhiteElo "2431"]
[BlackElo "2373"]
[Annotator "NA"]
[PlyCount "82"]
[EventDate "2019.09.11"]
[EventType "tourn"]
[EventCountry "GRE"]
[SourceTitle "playchess.com"]
[Source "ChessBase"]
[SourceQuality "1"]
[TimeControl "40/5400+30:1800+30"]

1. d4 {[%emt 0:00:00]} Nf6 {[%emt 0:00:00]} 2. c4 {[%emt 0:00:00]} g6 {[%emt 0:00:00]} 3. f3 {[%emt 0:00:00]} d5 {[%emt 0:00:00]} 4. cxd5 {[%emt 0:00:04]} Nxd5 {[%emt 0:00:04]} 5. e4 {[%emt 0:00:12]} Nb6 {[%emt 0:00:08]} 6. Be3 {[%emt 0:00:35]} Bg7 {[%emt 0:00:18]} 7. Qd2 {[%emt 0:00:44]} O-O {[%emt 0:01:18]} 8. Nc3 {[%emt 0:00:06]} e5 {[%emt 0:00:15]} 9. d5 {[%emt 0:00:24]} c6 {[%emt 0:00:06]} 10. O-O-O {[%emt 0:02:21]} cxd5 {[%emt 0:02:08]} 11. exd5 {[%emt 0:00:09]} N8d7 {[%emt 0:02:37]} 12. h4 {[%emt 0:02:45]} Nf6 {[%emt 0:03:27]} 13. g4 {[%emt 0:26:18]} e4 {[%emt 0:08:37]} 14. g5 {[%emt 0:09:04]} Nh5 {[%emt 0:02:55]} 15. Bd4 {[%emt 0:02:04]} exf3 {[%emt 0:16:06]} 16. Bxg7 {[%emt 0:00:49]} Nxg7 {[%emt 0:05:31]} 17. Nxf3 {[%emt 0:00:08]} Bg4 {[%emt 0:00:15]} 18. Qf4 {[%emt 0:02:31]} Qc8 {[%emt 0:03:01]} 19. Rd4 {[%emt 0:05:55]} Bxf3 {[%emt 0:12:47]} 20. Qxf3 {[%emt 0:01:00]} Qc5 {[%emt 0:00:05]} 21. Rd2 {[%emt 0:04:43]} Rfe8 {[%emt 0:11:48]} 22. Qf2 {[%emt 0:01:54]} Qxf2 {[%emt 0:11:17]} 23. Rxf2 {[%emt 0:00:07]} Rad8 {[%emt 0:08:18]} 24. Bg2 {[%emt 0:00:19]} Nf5 {[%emt 0:03:46]} 25. h5 {[%emt 0:02:10]} Kg7 {[%emt 0:01:59]} 26. Rhf1 {[%emt 0:11:16]} Ne3 {[%emt 0:04:14]} 27. h6+ {[%emt 0:04:30]} Kg8 {[%emt 0:00:01]} 28. Re1 {[%emt 0:00:01]} Nxg2 {[%emt 0:01:21]} 29. Rxe8+ {[%emt 0:00:07]} Rxe8 {[%emt 0:00:00]} 30. Rxg2 {[%emt 0:00:03]} Re5 {[%emt 0:01:12]} 31. Kc2 {[%emt 0:03:50]} Nxd5 {[%emt 0:01:16]} 32. Rd2 {[%emt 0:00:07]} Ne3+ {[%emt 0:00:04]} 33. Kb3 {[%emt 0:00:07]} Kf8 {[%emt 0:00:03]} 34. Rd7 {[%emt 0:00:33]} Rxg5 {[%emt 0:01:22]} 35. Ne4 {[%emt 0:00:26]} Rf5 {[%emt 0:00:37]} 36. Rxb7 {[%emt 0:01:33]} g5 {[%emt 0:00:28]} 37. Kc3 {[%emt 0:00:25]} g4 {[%emt 0:00:19]} 38. Kd4 {[%emt 0:00:58]} Nc2+ {[%emt 0:00:41]} 39. Kc3 {[%emt 0:00:14]} Ne3 {[%emt 0:00:29]} 40. Kd4 {[%emt 0:00:00]} Nc2+ {[%emt 0:00:00]} 41. Kc3 {[%emt 0:00:16]} Ne3 {[%emt 0:11:07]} 1/2-1/2

[Event "7th Fischer Memorial GM 2019"]
[Site "Anogia"]
[Date "2019.09.11"]
[Round "1.5"]
[White "Storey, Charles H"]
[Black "Percivaldi, Martin"]
[Result "0-1"]
[ECO "A13"]
[WhiteElo "2282"]
[BlackElo "2396"]
[Annotator "NA"]
[PlyCount "66"]
[EventDate "2019.09.11"]
[EventType "tourn"]
[EventCountry "GRE"]
[SourceTitle "playchess.com"]
[Source "ChessBase"]
[SourceQuality "1"]
[TimeControl "40/5400+30:1800+30"]

1. c4 {[%emt 0:00:00]} e6 {[%emt 0:00:00]} 2. Nf3 {[%emt 0:03:28]} d5 {[%emt 0:00:30]} 3. e3 {[%emt 0:03:29]} Nf6 {[%emt 0:01:52]} 4. b3 {[%emt 0:03:38]} Be7 {[%emt 0:01:29]} 5. Bb2 {[%emt 0:00:11]} O-O {[%emt 0:00:14]} 6. Rg1 {[%emt 0:04:54]} c5 {[%emt 0:05:19]} 7. g4 {[%emt 0:01:54]} Nc6 {[%emt 0:00:50]} 8. g5 {[%emt 0:00:51]} Ne8 {[%emt 0:00:22]} 9. h4 {[%emt 0:00:59]} d4 {[%emt 0:04:18]} 10. exd4 {[%emt 0:03:20]} cxd4 {[%emt 0:01:17]} 11. Bd3 {[%emt 0:01:24]} e5 {[%emt 0:07:44]} 12. Be4 {[%emt 0:26:56]} Bd6 {[%emt 0:09:21]} 13. g6 {[%emt 0:09:36]} fxg6 {[%emt 0:14:52]} 14. Bd5+ {[%emt 0:03:07]} Kh8 {[%emt 0:00:16]} 15. h5 {[%emt 0:05:46]} Nb4 {[%emt 0:17:40]} 16. Ng5 {[%emt 0:06:38]} Nd3+ {[%emt 0:01:39]} 17. Ke2 {[%emt 0:00:09]} Nxb2 {[%emt 0:04:16]} 18. Qc1 {[%emt 0:00:31]} Qf6 {[%emt 0:01:05]} 19. f3 {[%emt 0:01:04]} Nc7 {[%emt 0:06:47]} 20. hxg6 {[%emt 0:06:57]} Nxd5 {[%emt 0:00:37]} 21. cxd5 {[%emt 0:00:37]} Qxg6 {[%emt 0:02:29]} 22. Qxb2 {[%emt 0:02:07]} Be7 {[%emt 0:02:08]} 23. Nh3 {[%emt 0:02:05]} Qa6+ {[%emt 0:00:13]} 24. d3 {[%emt 0:00:29]} Bxh3 {[%emt 0:00:10]} 25. Nd2 {[%emt 0:00:07]} Bf5 {[%emt 0:00:41]} 26. Nc4 {[%emt 0:00:08]} Bf6 {[%emt 0:01:03]} 27. Rae1 {[%emt 0:00:08]} b5 {[%emt 0:00:40]} 28. Nd2 {[%emt 0:00:03]} Qd6 {[%emt 0:00:24]} 29. Ne4 {[%emt 0:00:14]} Qxd5 {[%emt 0:00:34]} 30. Qa3 {[%emt 0:00:10]} Bxe4 {[%emt 0:00:27]} 31. fxe4 {[%emt 0:00:06]} Qd7 {[%emt 0:00:28]} 32. Ref1 {[%emt 0:00:04]} Qh3 {[%emt 0:01:56]} 33. Rf3 {[%emt 0:00:19]} Qxf3+ {[%emt 0:00:11]} 0-1

[Event "7th Fischer Memorial GM 2019"]
[Site "Anogia"]
[Date "2019.09.12"]
[Round "2.1"]
[White "Baenziger, Fabian"]
[Black "Percivaldi, Martin"]
[Result "1-0"]
[ECO "A04"]
[WhiteElo "2366"]
[BlackElo "2396"]
[Annotator "NA"]
[PlyCount "101"]
[EventDate "2019.09.11"]
[EventType "tourn"]
[EventCountry "GRE"]
[SourceTitle "playchess.com"]
[Source "ChessBase"]
[SourceQuality "1"]
[TimeControl "40/5400+30:1800+30"]

1. Nf3 {[%emt 0:00:00]} e6 {[%emt 0:00:00]} 2. g3 {[%emt 0:00:02]} f5 {[%emt 0:00:22]} 3. Bg2 {[%emt 0:00:19]} Nf6 {[%emt 0:00:14]} 4. O-O {[%emt 0:00:27]} d5 {[%emt 0:00:16]} 5. d3 {[%emt 0:00:48]} Nc6 {[%emt 0:01:10]} 6. Nbd2 {[%emt 0:02:04]} Be7 {[%emt 0:00:56]} 7. e4 {[%emt 0:09:20]} fxe4 {[%emt 0:00:57]} 8. dxe4 {[%emt 0:00:08]} O-O {[%emt 0:03:09]} 9. Qe2 {[%emt 0:01:19]} a5 {[%emt 0:09:48]} 10. Rd1 {[%emt 0:15:49]} Bc5 {[%emt 0:06:54]} 11. exd5 {[%emt 0:01:07]} exd5 {[%emt 0:00:00]} 12. Nb3 {[%emt 0:13:30]} Bb6 {[%emt 0:11:02]} 13. c4 {[%emt 0:02:21]} Re8 {[%emt 0:03:25]} 14. Qf1 {[%emt 0:02:57]} a4 {[%emt 0:01:36]} 15. cxd5 {[%emt 0:11:31]} Ne7 {[%emt 0:03:39]} 16. Nbd4 {[%emt 0:01:08]} Nexd5 {[%emt 0:01:56]} 17. Qc4 {[%emt 0:07:08]} h6 {[%emt 0:03:25]} 18. Bf4 {[%emt 0:02:01]} c6 {[%emt 0:11:05]} 19. Ne5 {[%emt 0:06:13]} Bd7 {[%emt 0:07:53]} 20. b4 {[%emt 0:10:38]} axb3 {[%emt 0:00:16]} 21. Qxb3 {[%emt 0:03:13]} Ra7 {[%emt 0:03:39]} 22. Nb5 {[%emt 0:02:30]} Ra6 {[%emt 0:02:16]} 23. Nd6 {[%emt 0:01:23]} Be6 {[%emt 0:01:58]} 24. Nxe8 {[%emt 0:00:00]} Qxe8 {[%emt 0:00:57]} 25. Qf3 {[%emt 0:01:43]} Nxf4 {[%emt 0:02:34]} 26. Qxf4 {[%emt 0:00:00]} Rxa2 {[%emt 0:03:31]} 27. Rxa2 {[%emt 0:00:00]} Bxa2 {[%emt 0:00:53]} 28. Qa4 {[%emt 0:02:46]} Qxe5 {[%emt 0:08:12]} 29. Qxa2+ {[%emt 0:00:13]} Kh8 {[%emt 0:00:08]} 30. Bf3 {[%emt 0:00:00]} Qe7 {[%emt 0:06:19]} 31. Kg2 {[%emt 0:00:00]} Bc5 {[%emt 0:00:35]} 32. Qa8+ {[%emt 0:00:00]} Kh7 {[%emt 0:00:07]} 33. Rd8 {[%emt 0:00:00]} Bd6 {[%emt 0:00:28]} 34. Qc8 {[%emt 0:00:00]} Kg6 {[%emt 0:03:54]} 35. h4 Bc5 {[%emt 0:05:02]} 36. h5+ {[%emt 0:00:00]} Kf7 {[%emt 0:00:00]} 37. Rd2 {[%emt 0:00:30]} Ba3 {[%emt 0:00:00]} 38. Bd1 {[%emt 0:02:22]} Qe4+ {[%emt 0:00:00]} 39. Kh2 {[%emt 0:00:09]} Qb4 {[%emt 0:00:17]} 40. Rd3 {[%emt 0:00:00]} Nd5 {[%emt 0:00:00]} 41. Rf3+ {[%emt 0:12:30]} Ke7 {[%emt 0:03:51]} 42. Rb3 {[%emt 0:01:02]} Qd4 {[%emt 0:03:48]} 43. Rxb7+ {[%emt 0:00:24]} Kd6 {[%emt 0:00:22]} 44. Qf8+ {[%emt 0:04:47]} Ke5 {[%emt 0:06:36]} 45. f4+ {[%emt 0:01:49]} Ke4 {[%emt 0:01:59]} 46. Qe8+ {[%emt 0:01:20]} Ne7 {[%emt 0:02:52]} 47. Rxe7+ {[%emt 0:00:21]} Bxe7 {[%emt 0:00:08]} 48. Qxe7+ {[%emt 0:00:04]} Kd3 {[%emt 0:00:07]} 49. Qe2+ {[%emt 0:00:37]} Kc3 {[%emt 0:00:02]} 50. Qc2+ {[%emt 0:00:06]} Kb4 {[%emt 0:00:04]} 51. Qa4+ {[%emt 0:00:27]} 1-0

[Event "7th Fischer Memorial GM 2019"]
[Site "Anogia"]
[Date "2019.09.12"]
[Round "2.2"]
[White "Mitsis, Georgios"]
[Black "Storey, Charles H"]
[Result "1-0"]
[ECO "D46"]
[WhiteElo "2374"]
[BlackElo "2282"]
[Annotator "NA"]
[PlyCount "83"]
[EventDate "2019.09.11"]
[EventType "tourn"]
[EventCountry "GRE"]
[SourceTitle "playchess.com"]
[Source "ChessBase"]
[SourceQuality "1"]
[TimeControl "40/5400+30:1800+30"]

1. d4 {[%emt 0:01:45]} Nf6 {[%emt 0:00:00]} 2. c4 {[%emt 0:00:10]} e6 {[%emt 0:00:00]} 3. Nc3 {[%emt 0:00:32]} d5 {[%emt 0:02:34]} 4. Nf3 {[%emt 0:00:19]} c6 {[%emt 0:00:12]} 5. e3 {[%emt 0:01:03]} Nbd7 {[%emt 0:04:27]} 6. Bd3 {[%emt 0:07:53]} Be7 {[%emt 0:09:15]} 7. b3 {[%emt 0:00:44]} O-O {[%emt 0:02:46]} 8. Bb2 {[%emt 0:00:08]} b6 {[%emt 0:01:50]} 9. O-O {[%emt 0:00:11]} Bb7 {[%emt 0:00:09]} 10. Qc2 {[%emt 0:07:02]} Bd6 {[%emt 0:06:44]} 11. e4 {[%emt 0:06:39]} dxe4 {[%emt 0:04:08]} 12. Nxe4 {[%emt 0:00:06]} Nxe4 {[%emt 0:00:05]} 13. Bxe4 {[%emt 0:00:04]} Nf6 {[%emt 0:00:15]} 14. Bd3 {[%emt 0:00:10]} h6 {[%emt 0:02:58]} 15. c5 {[%emt 0:00:28]} Bc7 {[%emt 0:01:01]} 16. Rfe1 {[%emt 0:00:56]} Nd5 {[%emt 0:01:04]} 17. a3 {[%emt 0:01:03]} b5 {[%emt 0:04:55]} 18. Bf1 {[%emt 0:01:52]} a5 {[%emt 0:01:03]} 19. g3 {[%emt 0:01:04]} b4 {[%emt 0:00:33]} 20. a4 {[%emt 0:00:19]} Ba6 {[%emt 0:00:30]} 21. Bg2 {[%emt 0:00:18]} Rc8 {[%emt 0:02:48]} 22. Nd2 {[%emt 0:00:36]} Qf6 {[%emt 0:01:04]} 23. Nc4 {[%emt 0:05:35]} Rfd8 {[%emt 0:00:38]} 24. Rad1 {[%emt 0:01:47]} Rd7 {[%emt 0:02:07]} 25. Ne3 {[%emt 0:22:43]} Rcd8 {[%emt 0:01:24]} 26. Ng4 {[%emt 0:02:00]} Qe7 {[%emt 0:01:34]} 27. f4 {[%emt 0:01:51]} h5 {[%emt 0:09:31]} 28. Nf2 {[%emt 0:00:32]} Qf6 {[%emt 0:01:30]} 29. Ne4 {[%emt 0:05:36]} Qg6 {[%emt 0:00:15]} 30. Qf2 {[%emt 0:00:07]} f6 {[%emt 0:04:18]} 31. Bh3 {[%emt 0:01:11]} Nxf4 {[%emt 0:00:58]} 32. Nxf6+ {[%emt 0:13:36]} gxf6 {[%emt 0:00:14]} 33. Bxe6+ {[%emt 0:00:05]} Nxe6 {[%emt 0:02:19]} 34. Rxe6 {[%emt 0:00:07]} Be5 {[%emt 0:10:24]} 35. Re1 {[%emt 0:01:15]} Bxd4 {[%emt 0:08:10]} 36. Bxd4 {[%emt 0:00:08]} Rxd4 {[%emt 0:00:04]} 37. Rxf6 {[%emt 0:00:41]} Qg5 {[%emt 0:06:15]} 38. h4 {[%emt 0:06:50]} Rxh4 {[%emt 0:02:30]} 39. Rfe6 {[%emt 0:02:24]} Rd7 {[%emt 0:06:45]} 40. R6e5 {[%emt 0:00:00]} Qg7 {[%emt 0:00:00]} 41. Re8+ {[%emt 0:05:00]} Kh7 {[%emt 0:02:08]} 42. Qf5+ {[%emt 0:00:16]} 1-0

[Event "7th Fischer Memorial GM 2019"]
[Site "Anogia"]
[Date "2019.09.12"]
[Round "2.3"]
[White "Stoyanov, Tsvetan"]
[Black "Gretarsson, Helgi Ass"]
[Result "1/2-1/2"]
[ECO "C50"]
[WhiteElo "2373"]
[BlackElo "2410"]
[Annotator "NA RC"]
[PlyCount "121"]
[EventDate "2019.09.11"]
[EventType "tourn"]
[EventCountry "GRE"]
[SourceTitle "playchess.com"]
[Source "ChessBase"]
[SourceQuality "1"]
[TimeControl "40/5400+30:1800+30"]

1. e4 {[%emt 19:09:38]} e5 {[%emt 0:00:12]} 2. Nf3 {[%emt 0:00:42]} Nc6 {[%emt 0:00:01]} 3. Bc4 {[%emt 0:00:29]} Bc5 {[%emt 0:00:26]} 4. d3 {[%emt 0:00:45]} Nf6 {[%emt 0:00:15]} 5. O-O {[%emt 0:01:14]} O-O {[%emt 0:02:55]} 6. Bg5 {[%emt 0:02:42]} h6 {[%emt 0:00:14]} 7. Bh4 {[%emt 0:00:45]} Be7 {[%emt 0:00:10]} 8. Nbd2 {[%emt 0:06:21]} d6 {[%emt 0:13:43]} 9. a4 {[%emt 0:02:22]} Kh8 {[%emt 0:01:58]} 10. a5 {[%emt 0:08:37]} Rb8 {[%emt 0:00:58]} 11. Re1 {[%emt 0:06:16]} Be6 {[%emt 0:28:00]} 12. Bxf6 {[%emt 0:06:30]} Bxf6 {[%emt 0:00:02]} 13. Bxe6 {[%emt 0:06:16]} fxe6 {[%emt 0:00:10]} 14. Nc4 {[%emt 0:00:26]} Qd7 {[%emt 0:15:05]} 15. c3 {[%emt 0:04:18]} Qf7 {[%emt 0:00:09]} 16. Qc2 {[%emt 0:11:27]} g5 {[%emt 0:07:34]} 17. h3 {[%emt 0:07:22]} Bg7 {[%emt 0:04:45]} 18. Nh2 {[%emt 0:04:51]} Ne7 {[%emt 0:00:20]} 19. g3 {[%emt 0:03:04]} Ng6 {[%emt 0:00:10]} 20. b4 {[%emt 0:03:44]} d5 {[%emt 0:07:29]} 21. Nb2 {[%emt 0:01:46]} Rbd8 {[%emt 0:01:45]} 22. Na4 {[%emt 0:02:59]} Rfe8 {[%emt 0:00:41]} 23. Nc5 {[%emt 0:06:13]} b6 {[%emt 0:01:26]} 24. Nb3 {[%emt 0:02:04]} Bf8 {[%emt 0:01:06]} 25. Ng4 {[%emt 0:05:37]} b5 {[%emt 0:04:54]} 26. Nc5 {[%emt 0:04:14]} h5 {[%emt 0:01:10]} 27. Nh2 {[%emt 0:00:23]} Bxc5 {[%emt 0:00:17]} 28. bxc5 {[%emt 0:00:01]} Rf8 {[%emt 0:00:19]} 29. Qe2 {[%emt 0:01:14]} Kg7 {[%emt 0:00:04]} 30. Ra2 {[%emt 0:00:31]} h4 {[%emt 0:07:55]} 31. Kg2 {[%emt 0:00:15]} Qf6 {[%emt 0:01:04]} 32. Ng4 {[%emt 0:00:45]} Qe7 33. d4 {[%emt 0:00:15]} c6 {[%emt 0:00:13]} 34. Qe3 {[%emt 0:00:38]} Rf7 {[%emt 0:01:16]} 35. dxe5 {[%emt 0:01:17]} dxe4 {[%emt 0:00:29]} 36. Nf6 {[%emt 0:00:12]} Nxe5 {[%emt 0:00:24]} 37. Qxg5+ {[%emt 0:00:10]} Ng6 38. Nxe4 {[%emt 0:00:13]} Rd5 {[%emt 0:01:01]} 39. Qg4 {[%emt 0:01:02]} Rff5 {[%emt 0:00:02]} 40. Rae2 {[%emt 0:01:13]} Kh7 {[%emt 0:01:10]} 41. Nd6 {[%emt 0:20:40]} Rg5 {[%emt 0:01:10]} 42. Rxe6 {[%emt 0:02:41]} Rxg4 {[%emt 0:00:16]} 43. Rxe7+ {[%emt 0:00:03]} Nxe7 {[%emt 0:00:31]} 44. hxg4 {[%emt 0:00:01]} Ng6 {[%emt 0:01:37]} 45. gxh4 {[%emt 0:06:42]} Nxh4+ {[%emt 0:00:08]} 46. Kg3 {[%emt 0:00:03]} Ng6 {[%emt 0:00:02]} 47. Ne4 {[%emt 0:00:16]} Kg7 48. g5 {[%emt 0:01:43]} Ne5 {[%emt 0:00:32]} 49. f4 {[%emt 0:00:38]} Rd3+ {[%emt 0:00:10]} 50. Kg2 {[%emt 0:01:11]} Ng6 {[%emt 0:00:14]} 51. Rf1 {[%emt 0:00:47]} Nh4+ {[%emt 0:00:08]} 52. Kh2 {[%emt 0:00:48]} Nf3+ {[%emt 0:07:53]} 53. Kg2 {[%emt 0:00:56]} Nh4+ {[%emt 0:00:03]} 54. Kh2 {[%emt 0:00:02]} Nf3+ {[%emt 0:00:05]} 55. Kh1 {[%emt 0:00:54]} Kg6 {[%emt 0:00:16]} 56. Nd6 {[%emt 0:00:35]} Kh5 {[%emt 0:00:58]} 57. Kg2 {[%emt 0:00:49]} Kg4 {[%emt 0:00:15]} 58. Ne4 {[%emt 0:00:28]} Nh4+ {[%emt 0:10:04]} 59. Kg1 Nf3+ {[%emt 0:00:09]} 60. Kg2 {[%emt 0:00:06]} Nh4+ {[%emt 0:00:05]} 61. Kg1 {[%emt 0:00:15]} 1/2-1/2

[Event "7th Fischer Memorial GM 2019"]
[Site "Anogia"]
[Date "2019.09.12"]
[Round "2.4"]
[White "Levin, Evgeny A."]
[Black "Akash Pc, Iyer"]
[Result "1/2-1/2"]
[ECO "D39"]
[WhiteElo "2511"]
[BlackElo "2431"]
[Annotator "ChessBase"]
[PlyCount "54"]
[EventDate "2019.09.11"]
[EventType "tourn"]
[EventCountry "GRE"]
[SourceTitle "playchess.com"]
[Source "ChessBase"]
[SourceQuality "1"]
[TimeControl "40/5400+30:1800+30"]

1. d4 {[%emt 0:00:00]} Nf6 {[%emt 0:00:00]} 2. c4 {[%emt 0:00:00]} e6 {[%emt 0:00:00]} 3. Nf3 {[%emt 0:00:00]} d5 {[%emt 0:00:00]} 4. Nc3 {[%emt 0:00:00]} Bb4 {[%emt 0:00:00]} 5. Bg5 {[%emt 0:00:55]} dxc4 {[%emt 0:00:10]} 6. e4 {[%emt 0:00:48]} b5 {[%emt 0:00:56]} 7. e5 {[%emt 0:02:39]} h6 {[%emt 0:00:09]} 8. exf6 {[%emt 0:00:05]} hxg5 {[%emt 0:00:07]} 9. fxg7 {[%emt 0:00:02]} Rg8 {[%emt 0:00:08]} 10. g3 {[%emt 0:00:41]} Bb7 {[%emt 0:06:02]} 11. Bg2 {[%emt 0:01:03]} g4 {[%emt 0:07:38]} 12. Nh4 {[%emt 0:01:52]} Bxg2 {[%emt 0:00:30]} 13. Nxg2 {[%emt 0:00:03]} Nc6 {[%emt 0:15:46]} 14. O-O {[%emt 0:29:45]} Bxc3 {[%emt 0:09:42]} 15. bxc3 {[%emt 0:00:04]} Rxg7 {[%emt 0:00:10]} 16. Re1 {[%emt 0:11:31]} Qd6 {[%emt 0:03:32]} 17. Rb1 {[%emt 0:12:02]} a6 {[%emt 0:00:57]} 18. Ne3 {[%emt 0:03:01]} O-O-O {[%emt 0:07:28]} 19. Nxg4 {[%emt 0:07:18]} f5 {[%emt 0:01:53]} 20. Ne5 {[%emt 0:02:47]} Nxe5 {[%emt 0:00:28]} 21. Rxe5 {[%emt 0:00:03]} Qxe5 {[%emt 0:01:08]} 22. dxe5 {[%emt 0:00:28]} Rxd1+ {[%emt 0:00:06]} 23. Rxd1 {[%emt 0:00:02]} c5 {[%emt 0:07:36]} 24. a3 {[%emt 0:04:37]} a5 {[%emt 0:01:56]} 25. Kf1 {[%emt 0:09:26]} b4 {[%emt 0:01:32]} 26. Ke2 {[%emt 0:00:54]} Rb7 {[%emt 0:05:00]} 27. a4 {[%emt 0:00:43]} Rd7 {[%emt 0:03:15]} 1/2-1/2

[Event "7th Fischer Memorial GM 2019"]
[Site "Anogia"]
[Date "2019.09.12"]
[Round "2.5"]
[White "Kaasen, Tor Fredrik"]
[Black "Kapnisis, Spyridon"]
[Result "1/2-1/2"]
[ECO "B32"]
[WhiteElo "2405"]
[BlackElo "2465"]
[Annotator "ChessBase"]
[PlyCount "29"]
[EventDate "2019.09.11"]
[EventType "tourn"]
[EventCountry "GRE"]
[SourceTitle "playchess.com"]
[Source "ChessBase"]
[SourceQuality "1"]
[TimeControl "40/5400+30:1800+30"]

1. e4 {[%emt 0:00:00]} c5 {[%emt 0:00:15]} 2. Nf3 {[%emt 0:00:00]} Nc6 {[%emt 0:00:05]} 3. d4 {[%emt 0:00:07]} cxd4 {[%emt 0:00:07]} 4. Nxd4 {[%emt 0:00:04]} e5 {[%emt 0:00:11]} 5. Nb5 {[%emt 0:00:31]} d6 {[%emt 0:00:04]} 6. c4 {[%emt 0:01:19]} g6 {[%emt 0:01:06]} 7. N1c3 {[%emt 0:03:14]} a6 {[%emt 0:01:39]} 8. Na3 {[%emt 0:00:09]} Bg7 {[%emt 0:02:53]} 9. Be2 {[%emt 0:06:01]} Nd4 {[%emt 0:11:47]} 10. Nc2 {[%emt 0:02:05]} Nxe2 {[%emt 0:01:18]} 11. Qxe2 {[%emt 0:00:07]} Ne7 {[%emt 0:02:09]} 12. Be3 {[%emt 0:07:22]} Be6 {[%emt 0:02:44]} 13. b3 {[%emt 0:13:03]} b5 {[%emt 0:15:19]} 14. cxb5 {[%emt 0:06:31]} d5 {[%emt 0:02:28]} 15. exd5 {[%emt 0:20:05]} 1/2-1/2

[Event "7th Fischer Memorial GM 2019"]
[Site "Anogia"]
[Date "2019.09.13"]
[Round "3.1"]
[White "Kapnisis, Spyridon"]
[Black "Baenziger, Fabian"]
[Result "1/2-1/2"]
[ECO "B51"]
[WhiteElo "2465"]
[BlackElo "2366"]
[Annotator "ChessBase"]
[PlyCount "47"]
[EventDate "2019.09.11"]
[EventType "tourn"]
[EventCountry "GRE"]
[SourceTitle "playchess.com"]
[Source "ChessBase"]
[SourceQuality "1"]
[TimeControl "40/5400+30:1800+30"]

1. e4 {[%emt 0:00:00]} c5 {[%emt 0:00:00]} 2. Nf3 {[%emt 0:00:00]} d6 {[%emt 0:00:13]} 3. Bb5+ {[%emt 0:00:00]} Nd7 {[%emt 0:00:31]} 4. a4 {[%emt 0:00:20]} Ngf6 {[%emt 0:00:39]} 5. Nc3 {[%emt 0:00:07]} e6 {[%emt 0:00:33]} 6. O-O {[%emt 0:01:48]} a6 {[%emt 0:02:07]} 7. Be2 {[%emt 0:00:13]} b6 {[%emt 0:00:29]} 8. d4 {[%emt 0:00:37]} cxd4 {[%emt 0:00:17]} 9. Qxd4 {[%emt 0:00:22]} Qc7 {[%emt 0:00:58]} 10. Rd1 {[%emt 0:17:44]} Bb7 {[%emt 0:02:46]} 11. Be3 {[%emt 0:03:19]} Be7 {[%emt 0:03:27]} 12. Nd2 {[%emt 0:02:56]} O-O {[%emt 0:17:43]} 13. Nc4 {[%emt 0:03:14]} d5 {[%emt 0:14:38]} 14. exd5 {[%emt 0:03:40]} Nxd5 {[%emt 0:00:35]} 15. Nxd5 {[%emt 0:00:57]} Bxd5 {[%emt 0:03:44]} 16. Bf4 {[%emt 0:03:55]} Qb7 {[%emt 0:07:10]} 17. Nd6 {[%emt 0:04:12]} Qa7 {[%emt 0:00:00]} 18. Ra3 {[%emt 0:28:58]} Bf6 {[%emt 0:00:00]} 19. Qb4 Ne5 {[%emt 0:08:28]} 20. c4 {[%emt 0:00:40]} Bc6 {[%emt 0:11:21]} 21. Nb5 {[%emt 0:02:00]} Qb7 {[%emt 0:00:00]} 22. Nd6 {[%emt 0:00:08]} Qa7 {[%emt 0:00:00]} 23. Nb5 {[%emt 0:00:20]} Qb7 {[%emt 0:00:00]} 24. Nd6 {[%emt 0:13:56]} 1/2-1/2